fUST/lending_fUST_20240420
["ID","MTS","AMOUNT","RATE_DAILY","PERIOD"]
[322982625,1713560948732,-500.0,0.00030085,2]
[322982626,1713560948753,-500.0,0.00030085,2]
[322982627,1713560948773,-500.0,0.00030085,2]
[322982628,1713560948793,-500.0,0.00030085,2]
[322982629,1713560948812,-500.0,0.00030085,2]
[322982630,1713560948831,-500.0,0.00030085,2]
[322982631,1713560948851,-500.0,0.00030085,2]
[322982632,1713560948871,-344.81695162,0.00030085,2]
[322982633,1713560948892,-53609.79298994,0.00030086,4]
[322982634,1713560954103,-602.88452761,0.00023138,2]
[322982635,1713560954124,-241.3290765,0.00023138,2]
[322982636,1713560954144,-207.25,0.00030076,3]
[322982637,1713560954164,-15312.02983684,0.00030086,4]
[322982638,1713560954183,-179.143226,0.00030086,2]
[322982639,1713560954203,-179.143226,0.00030086,2]
[322982640,1713560954223,-749.052183,0.00030086,2]
[322982641,1713560954242,-749.052183,0.00030086,2]
[322982642,1713560954261,-189.009093,0.00030086,2]
[322982643,1713560954280,-189.009093,0.00030086,2]
[322982644,1713560954299,-151.0,0.00030086,2]
[322982645,1713560954318,-151.0,0.00030086,2]
[322982646,1713560954338,-151.0,0.00030086,2]
[322982647,1713560954359,-151.0,0.00030086,2]
[322982648,1713560954378,-151.0,0.00030086,2]
[322982649,1713560954399,-151.0,0.00030086,2]
[322982650,1713560954420,-151.0,0.00030086,2]
[322982651,1713560954439,-151.0,0.00030086,2]
[322982652,1713560954461,-151.0,0.00030086,2]
[322982653,1713560954481,-151.0,0.00030086,2]
[322982654,1713560954502,-964.771687,0.00030086,2]
[322982655,1713560954524,-964.771687,0.00030086,2]
[322982656,1713560954544,-964.771687,0.00030086,2]
[322982657,1713560954564,-964.771687,0.00030086,2]
[322982658,1713560954586,-964.771687,0.00030086,2]
[322982659,1713560954605,-964.771687,0.00030086,2]
[322982660,1713560954624,-175.749081,0.00030086,2]
[322982661,1713560954644,-1218.27253,0.00030086,2]
[322982662,1713560954663,-1218.27253,0.00030086,2]
[322982663,1713560954682,-1218.27253,0.00030086,2]
[322982664,1713560954702,-1218.27253,0.00030086,2]
[322982665,1713560954721,-1218.27253,0.00030086,2]
[322982666,1713560954741,-1218.27253,0.00030086,2]
[322982667,1713560954760,-1218.27253,0.00030086,2]
[322982668,1713560954779,-1218.27253,0.00030086,2]
[322982669,1713560954799,-1218.27253,0.00030086,2]
[322982670,1713560954818,-1218.27253,0.00030086,2]
[322982671,1713560954839,-255.457144,0.00030086,2]
[322982672,1713560954858,-7458.664184,0.00030086,2]
[322982673,1713560954877,-7458.664184,0.00030086,2]
[322982674,1713560954896,-7458.664184,0.00030086,2]
[322982675,1713560954914,-7458.664184,0.00030086,2]
[322982676,1713560954933,-7458.664184,0.00030086,2]
[322982677,1713560954953,-7458.664184,0.00030086,2]
[322982678,1713560955066,-7458.664184,0.00030086,2]
[322982679,1713560955086,-7458.664184,0.00030086,2]
[322982680,1713560955105,-7458.664184,0.00030086,2]
[322982681,1713560955126,-7458.664184,0.00030086,2]
[322982682,1713560955148,-396.946132,0.00030086,2]
[322982683,1713560955169,-396.946132,0.00030086,2]
[322982684,1713560955188,-396.946132,0.00030086,2]
[322982685,1713560955208,-396.946132,0.00030086,2]
[322982686,1713560955228,-396.946132,0.00030086,2]
[322982687,1713560955248,-396.946132,0.00030086,2]
[322982688,1713560955270,-396.946132,0.00030086,2]
[322982689,1713560955290,-396.946132,0.00030086,2]
[322982690,1713560955309,-396.946132,0.00030086,2]
[322982691,1713560955328,-396.946132,0.00030086,2]
[322982692,1713560955349,-506.555106,0.00030086,2]
[322982693,1713560955369,-506.555106,0.00030086,2]
[322982694,1713560955389,-506.555106,0.00030086,2]
[322982695,1713560955413,-506.555106,0.00030086,2]
[322982696,1713560955435,-506.555106,0.00030086,2]
[322982697,1713560955457,-506.555106,0.00030086,2]
[322982698,1713560955477,-506.555106,0.00030086,2]
[322982699,1713560955498,-506.555106,0.00030086,2]
[322982700,1713560955518,-506.555106,0.00030086,2]
[322982701,1713560955538,-506.555106,0.00030086,2]
[322982702,1713560955558,-167.834082,0.00030086,2]
[322982703,1713560955578,-167.834082,0.00030086,2]
[322982704,1713560955598,-167.834082,0.00030086,2]
[322982705,1713560955618,-167.834082,0.00030086,2]
[322982706,1713560955638,-167.834082,0.00030086,2]
[322982707,1713560955659,-167.834082,0.00030086,2]
[322982708,1713560955679,-167.834082,0.00030086,2]
[322982709,1713560955698,-167.834082,0.00030086,2]
[322982710,1713560955718,-167.834082,0.00030086,2]
[322982711,1713560955739,-167.834082,0.00030086,2]
[322982712,1713560955759,-167.834082,0.00030086,2]
[322982713,1713560955779,-167.834082,0.00030086,2]
[322982714,1713560955799,-167.834082,0.00030086,2]
[322982715,1713560955820,-167.834082,0.00030086,2]
[322982716,1713560955841,-153.21456,0.00030086,2]
[322982717,1713560955863,-167.834082,0.00030086,2]
[322982718,1713560955882,-167.834082,0.00030086,2]
[322982719,1713560955902,-167.834082,0.00030086,2]
[322982720,1713560955922,-167.834082,0.00030086,2]
[322982721,1713560955942,-167.834082,0.00030086,2]
[322982722,1713560955964,-167.834086,0.00030086,2]
[322982723,1713560955984,-2135.228484,0.00030086,2]
[322982724,1713560956004,-2135.228484,0.00030086,2]
[322982725,1713560956024,-151.359188,0.00030086,2]
[322982726,1713560956045,-2135.228484,0.00030086,2]
[322982727,1713560956068,-2135.228484,0.00030086,2]
[322982728,1713560956088,-2135.228484,0.00030086,2]
[322982729,1713560956107,-2135.228484,0.00030086,2]
[322982730,1713560956130,-2135.228484,0.00030086,2]
[322982731,1713560956153,-2135.228484,0.00030086,2]
[322982732,1713560956173,-2135.228484,0.00030086,2]
[322982733,1713560956192,-2135.228484,0.00030086,2]
[322982734,1713560956211,-2135.228484,0.00030086,2]
[322982735,1713560956232,-2135.228484,0.00030086,2]
[322982736,1713560956252,-2135.228484,0.00030086,2]
[322982737,1713560956271,-2135.228484,0.00030086,2]
[322982738,1713560956291,-2135.228484,0.00030086,2]
[322982739,1713560956310,-2135.228484,0.00030086,2]
[322982740,1713560956329,-2135.228484,0.00030086,2]
[322982741,1713560956350,-2135.228484,0.00030086,2]
[322982742,1713560956372,-2135.228484,0.00030086,2]
[322982743,1713560956392,-2135.2284769,0.00030086,2]
[322982744,1713560956417,-151.0,0.00030086,2]
[322982745,1713560956436,-151.0,0.00030086,2]
[322982746,1713560956457,-151.0,0.00030086,2]
[322982747,1713560956477,-151.0,0.00030086,2]
[322982748,1713560956498,-151.0,0.00030086,2]
[322982749,1713560956518,-193.918794,0.00030086,2]
[322982750,1713560956538,-151.0,0.00030086,2]
[322982751,1713560956557,-151.0,0.00030086,2]
[322982752,1713560956578,-151.0,0.00030086,2]
[322982753,1713560956597,-151.0,0.00030086,2]
[322982754,1713560956617,-151.0,0.00030086,2]
[322982755,1713560956636,-269.859993,0.00030086,2]
[322982756,1713560956660,-1817.323157,0.00030086,2]
[322982757,1713560956680,-1817.323157,0.00030086,2]
[322982758,1713560956700,-1817.323157,0.00030086,2]
[322982759,1713560956719,-1817.323157,0.00030086,2]
[322982760,1713560956740,-1817.323157,0.00030086,2]
[322982761,1713560956759,-1817.323157,0.00030086,2]
[322982762,1713560956779,-1817.323157,0.00030086,2]
[322982763,1713560956799,-1817.323157,0.00030086,2]
[322982764,1713560956819,-1817.323157,0.00030086,2]
[322982765,1713560956839,-1817.323157,0.00030086,2]
[322982766,1713560956859,-1817.323157,0.00030086,2]
[322982767,1713560956879,-1817.323157,0.00030086,2]
[322982768,1713560956901,-1817.323157,0.00030086,2]
[322982769,1713560956920,-1817.323157,0.00030086,2]
[322982770,1713560956940,-1817.323157,0.00030086,2]
[322982771,1713560956962,-1165.04071352,0.00030086,2]
[322982774,1713561027103,166.666666,0.00028592,2]
[322982826,1713561032489,-191.13379203,0.00029988,2]
[322982828,1713561032499,-147.88399395,0.00030078,3]
[322982830,1713561032512,-24.82600605,0.00030078,3]
[322982832,1713561032521,-2818.64265301,0.00030082,4]
[322982834,1713561032531,-400.0,0.00030083,2]
[322982836,1713561032539,-469.40830169,0.00030084,4]
[322982845,1713561032639,-295.04214284,0.00030084,4]
[322982847,1713561032654,-764.63268213,0.00030084,4]
[322982849,1713561032663,-249.9827727,0.00030084,4]
[322982851,1713561032673,-337.20045261,0.00030084,4]
[322982852,1713561032682,-467.01821,0.00030084,4]
[322982854,1713561032692,-227.97443403,0.00030084,4]
[322982856,1713561032701,-280.11698288,0.00030085,4]
[322982858,1713561032710,-2125.01896532,0.00030085,4]
[322982859,1713561032721,-262.93623541,0.00030085,4]
[322982861,1713561032731,-652.28244348,0.00030086,2]
[322982863,1713561032740,-1817.323157,0.00030086,2]
[322982865,1713561032749,-1607.59456085,0.00030086,2]
[322982873,1713561032847,-209.72859615,0.00030086,2]
[322982875,1713561032857,-1806.74643309,0.00030086,2]
[322982877,1713561032868,-10.57672391,0.00030086,2]
[322982879,1713561032878,-151.0,0.00030086,2]
[322982881,1713561032888,-151.0,0.00030086,2]
[322982882,1713561032897,-1201.20979256,0.00030086,2]
[322982947,1713561038582,-863.57,0.00030078,3]
[322982949,1713561038592,-234.38072599,0.00030085,2]
[322982951,1713561038601,-616.11337144,0.00030086,2]
[322982953,1713561038610,-151.0,0.00030086,2]
[322982955,1713561038619,-151.0,0.00030086,2]
[322982957,1713561038628,-151.0,0.00030086,2]
[322982958,1713561038638,-151.0,0.00030086,2]
[322982960,1713561038647,-151.0,0.00030086,2]
[322982962,1713561038657,-151.0,0.00030086,2]
[322982964,1713561038667,-151.0,0.00030086,2]
[322982965,1713561038676,-151.0,0.00030086,2]
[322982966,1713561038685,-151.0,0.00030086,2]
[322982967,1713561038694,-151.0,0.00030086,2]
[322982968,1713561038704,-151.0,0.00030086,2]
[322982969,1713561038713,-151.0,0.00030086,2]
[322982970,1713561038725,-151.0,0.00030086,2]
[322982971,1713561038734,-560.71479091,0.00030086,4]
[322982972,1713561038743,-609.136265,0.00030086,2]
[322982973,1713561038753,-609.136265,0.00030086,2]
[322982974,1713561038762,-151.0,0.00030086,2]
[322982975,1713561038771,-609.136265,0.00030086,2]
[322982976,1713561038780,-609.136265,0.00030086,2]
[322982978,1713561038790,-151.0,0.00030086,2]
[322982979,1713561038799,-609.136265,0.00030086,2]
[322982981,1713561038808,-257.534547,0.00030086,2]
[322982983,1713561038817,-609.136265,0.00030086,2]
[322982985,1713561038825,-609.136265,0.00030086,2]
[322982986,1713561038834,-609.136265,0.00030086,2]
[322982988,1713561038843,-609.136265,0.00030086,2]
[322982990,1713561038852,-609.136265,0.00030086,2]
[322982991,1713561038862,-609.136265,0.00030086,2]
[322982993,1713561038871,-609.136265,0.00030086,2]
[322982994,1713561038880,-609.136265,0.00030086,2]
[322982995,1713561038890,-609.136265,0.00030086,2]
[322982996,1713561038899,-609.136265,0.00030086,2]
[322982998,1713561038908,-609.136265,0.00030086,2]
[322983000,1713561038917,-609.136265,0.00030086,2]
[322983002,1713561038926,-609.136265,0.00030086,2]
[322983003,1713561038935,-609.136265,0.00030086,2]
[322983004,1713561038945,-609.136264,0.00030086,2]
[322983005,1713561038954,-1042.856241,0.00030086,2]
[322983007,1713561038964,-1042.856241,0.00030086,2]
[322983009,1713561038974,-1042.856241,0.00030086,2]
[322983011,1713561038983,-1042.856241,0.00030086,2]
[322983013,1713561038991,-1042.856241,0.00030086,2]
[322983015,1713561039000,-1042.856241,0.00030086,2]
[322983017,1713561039009,-1042.856241,0.00030086,2]
[322983019,1713561039018,-1042.856241,0.00030086,2]
[322983021,1713561039028,-1042.856241,0.00030086,2]
[322983023,1713561039036,-1042.856241,0.00030086,2]
[322983025,1713561039046,-1042.856241,0.00030086,2]
[322983027,1713561039056,-1042.856241,0.00030086,2]
[322983029,1713561039065,-1042.856241,0.00030086,2]
[322983031,1713561039074,-1042.856241,0.00030086,2]
[322983033,1713561039083,-1042.856241,0.00030086,2]
[322983035,1713561039093,-1042.856241,0.00030086,2]
[322983037,1713561039102,-1042.856241,0.00030086,2]
[322983039,1713561039111,-1042.856241,0.00030086,2]
[322983050,1713561039191,-1042.856241,0.00030086,2]
[322983052,1713561039215,-1042.856236,0.00030086,2]
[322983054,1713561039225,-674.146965,0.00030086,2]
[322983056,1713561039235,-674.146965,0.00030086,2]
[322983058,1713561039243,-674.146965,0.00030086,2]
[322983060,1713561039254,-674.146965,0.00030086,2]
[322983062,1713561039264,-674.146965,0.00030086,2]
[322983064,1713561039273,-674.146965,0.00030086,2]
[322983066,1713561039281,-674.146965,0.00030086,2]
[322983068,1713561039290,-674.146965,0.00030086,2]
[322983070,1713561039299,-674.146965,0.00030086,2]
[322983072,1713561039308,-674.146965,0.00030086,2]
[322983074,1713561039316,-674.146965,0.00030086,2]
[322983076,1713561039325,-674.146965,0.00030086,2]
[322983078,1713561039335,-674.146965,0.00030086,2]
[322983080,1713561039344,-674.146965,0.00030086,2]
[322983082,1713561039354,-674.146965,0.00030086,2]
[322983084,1713561039363,-674.146965,0.00030086,2]
[322983086,1713561039373,-674.146965,0.00030086,2]
[322983088,1713561039383,-674.146965,0.00030086,2]
[322983090,1713561039392,-674.146965,0.00030086,2]
[322983092,1713561039402,-674.146959,0.00030086,2]
[322983094,1713561039411,-151.0,0.00030086,2]
[322983096,1713561039423,-151.0,0.00030086,2]
[322983098,1713561039437,-151.0,0.00030086,2]
[322983100,1713561039456,-151.0,0.00030086,2]
[322983102,1713561039471,-217.808223,0.00030086,2]
[322983104,1713561039480,-151.0,0.00030086,2]
[322983106,1713561039489,-151.0,0.00030086,2]
[322983108,1713561039501,-151.0,0.00030086,2]
[322983110,1713561039510,-151.0,0.00030086,2]
[322983112,1713561039519,-151.0,0.00030086,2]
[322983114,1713561039530,-151.0,0.00030086,2]
[322983116,1713561039539,-151.0,0.00030086,2]
[322983118,1713561039548,-202.028589,0.00030086,2]
[322983120,1713561039557,-458.43506979,0.00030087,2]
[322983122,1713561039566,-463.68829803,0.00030087,2]
[322983124,1713561039577,-500.0,0.00030087,2]
[322983126,1713561039586,-259.79529178,0.00030087,2]
[322983128,1713561039595,-500.0,0.00030087,2]
[322983130,1713561039604,-500.0,0.00030087,2]
[322983132,1713561039613,-503.44508548,0.00030087,2]
[322983134,1713561039621,-500.0,0.00030087,2]
[322983136,1713561039630,-49714.08019201,0.00030088,4]
[322983138,1713561039639,-314.93718553,0.00030088,4]
[322983139,1713561039648,-179.143226,0.00030088,2]
[322983141,1713561039657,-179.143226,0.00030088,2]
[322983143,1713561039666,-189.009093,0.00030088,2]
[322983145,1713561039675,-189.009093,0.00030088,2]
[322983147,1713561039684,-263.720789,0.00030088,2]
[322983148,1713561039692,-151.0,0.00030088,2]
[322983149,1713561039701,-151.0,0.00030088,2]
[322983150,1713561039710,-153.785037,0.00030088,2]
[322983151,1713561039719,-153.147677,0.00030088,2]
[322983152,1713561039729,-151.0,0.00030088,2]
[322983153,1713561039737,-151.0,0.00030088,2]
[322983154,1713561039746,-151.0,0.00030088,2]
[322983155,1713561039755,-151.0,0.00030088,2]
[322983156,1713561039764,-162.231607,0.00030088,2]
[322983158,1713561039773,-964.771687,0.00030088,2]
[322983160,1713561039783,-964.771687,0.00030088,2]
[322983162,1713561039792,-964.771687,0.00030088,2]
[322983164,1713561039801,-964.771687,0.00030088,2]
[322983166,1713561039810,-964.771687,0.00030088,2]
[322983168,1713561039820,-964.771687,0.00030088,2]
[322983170,1713561039829,-964.771687,0.00030088,2]
[322983172,1713561039838,-964.771687,0.00030088,2]
[322983174,1713561039847,-7458.664184,0.00030088,2]
[322983176,1713561039857,-7458.664184,0.00030088,2]
[322983180,1713561039866,-4386.14507816,0.00030088,2]
[322983183,1713561039879,-3072.51910584,0.00030088,2]
[322983185,1713561039888,-7458.664184,0.00030088,2]
[322983187,1713561039898,-7458.664184,0.00030088,2]
[322983189,1713561039908,-776.92293683,0.00030088,2]
[322983318,1713561041273,-6681.74124717,0.00030088,2]
[322983319,1713561041282,-7458.664184,0.00030088,2]
[322983320,1713561041291,-7458.664184,0.00030088,2]
[322983321,1713561041300,-7458.664184,0.00030088,2]
[322983322,1713561041310,-7458.664176,0.00030088,2]
[322983323,1713561041319,-396.946132,0.00030088,2]
[322983324,1713561041329,-396.946132,0.00030088,2]
[322983325,1713561041338,-396.946132,0.00030088,2]
[322983326,1713561041347,-396.946132,0.00030088,2]
[322983327,1713561041357,-396.946132,0.00030088,2]
[322983328,1713561041367,-396.946132,0.00030088,2]
[322983329,1713561041377,-396.946132,0.00030088,2]
[322983330,1713561041387,-396.946132,0.00030088,2]
[322983331,1713561041397,-396.946132,0.00030088,2]
[322983332,1713561041406,-396.946135,0.00030088,2]
[322983333,1713561041416,-506.555106,0.00030088,2]
[322983334,1713561041431,-506.555106,0.00030088,2]
[322983335,1713561041441,-506.555106,0.00030088,2]
[322983336,1713561041452,-506.555106,0.00030088,2]
[322983337,1713561041463,-506.555106,0.00030088,2]
[322983338,1713561041475,-506.555106,0.00030088,2]
[322983339,1713561041486,-506.555106,0.00030088,2]
[322983340,1713561041496,-506.555106,0.00030088,2]
[322983341,1713561041506,-506.555106,0.00030088,2]
[322983342,1713561041518,-506.555112,0.00030088,2]
[322983343,1713561041529,-151.0,0.00030088,2]
[322983344,1713561041538,-151.0,0.00030088,2]
[322983345,1713561041548,-469.38840352,0.00030089,4]
[322983346,1713561041558,-457.23929342,0.0003009,4]
[322983347,1713561041568,-151.0,0.0003009,2]
[322983348,1713561041578,-151.0,0.0003009,2]
[322983349,1713561041588,-964.771687,0.0003009,2]
[322983350,1713561041599,-964.771687,0.0003009,2]
[322983351,1713561041609,-964.771687,0.0003009,2]
[322983352,1713561041618,-964.771687,0.0003009,2]
[322983353,1713561041628,-587.0,0.00030411,2]
[322983354,1713561041638,-8608.55567035,0.00030599,2]
[322983355,1713561041648,-179.143226,0.00030599,2]
[322983356,1713561041657,-179.143226,0.00030599,2]
[322983357,1713561041666,-189.009093,0.00030599,2]
[322983358,1713561041676,-189.009093,0.00030599,2]
[322983359,1713561041686,-151.0,0.00030599,2]
[322983360,1713561041695,-151.0,0.00030599,2]
[322983361,1713561041705,-151.0,0.00030599,2]
[322983362,1713561041715,-151.0,0.00030599,2]
[322983363,1713561041728,-151.0,0.00030599,2]
[322983364,1713561041740,-157.994695,0.00030599,2]
[322983365,1713561041750,-964.771687,0.00030599,2]
[322983366,1713561041761,-964.771685,0.00030599,2]
[322983367,1713561041770,-226.463987,0.00030599,2]
[322983368,1713561041781,-1352.3101937,0.000306,4]
[322983369,1713561041791,-191.13379203,0.0003097,2]
[322983370,1713561041801,-276.82199911,0.00031,4]
[322983371,1713561041814,-73.60444053,0.00031,4]
[322983372,1713561041824,-587.0,0.00031644,2]
[322983373,1713561041834,-191.13379203,0.00031951,2]
[322983374,1713561041844,-151.0,0.00031976,2]
[322983375,1713561041854,-151.0,0.00031976,2]
[322983376,1713561041864,-189.009093,0.00032312,2]
[322983377,1713561041875,-189.009093,0.00032312,2]
[322983378,1713561041885,-154.86062544,0.00032312,4]
[322983379,1713561041895,-282.38874774,0.00032312,4]
[322983380,1713561041906,-150.84915085,0.00032674,2]
[322983381,1713561041916,-488.839129,0.00032877,2]
[322983382,1713561041927,-488.839129,0.00032877,2]
[322983383,1713561041937,-488.839129,0.00032877,2]
[322983384,1713561041947,-488.839129,0.00032877,2]
[322983385,1713561041956,-488.839129,0.00032877,2]
[322983386,1713561041965,-488.839129,0.00032877,2]
[322983387,1713561041977,-488.839129,0.00032877,2]
[322983388,1713561041987,-488.839129,0.00032877,2]
[322983389,1713561041997,-488.839129,0.00032877,2]
[322983390,1713561042007,-488.839129,0.00032877,2]
[322983391,1713561042017,-488.839129,0.00032877,2]
[322983392,1713561042028,-488.839129,0.00032877,2]
[322983393,1713561042040,-488.839129,0.00032877,2]
[322983394,1713561042050,-488.839129,0.00032877,2]
[322983395,1713561042059,-488.839129,0.00032877,2]
[322983396,1713561042070,-488.839129,0.00032877,2]
[322983397,1713561042079,-488.839129,0.00032877,2]
[322983398,1713561042089,-488.839129,0.00032877,2]
[322983399,1713561042099,-488.839129,0.00032877,2]
[322983400,1713561042185,-488.839136,0.00032877,2]
[322983401,1713561042195,-191.13379203,0.00032933,2]
[322983402,1713561042205,-560.0,0.00033091,2]
[322983403,1713561042215,-497.51110003,0.0003315,2]
[322983404,1713561042226,-221.349593,0.00033165,2]
[322983405,1713561042235,-301.6983017,0.00033223,4]
[322983406,1713561042245,-590.0,0.00033226,2]
[322983407,1713561042254,-603.3966034,0.00033782,7]
[322983408,1713561042264,-151.0,0.0003383,2]
[322983409,1713561042274,-153.54682459,0.0003385,7]
[322983410,1713561042284,-2002.42401529,0.00033879,2]
[322983411,1713561042294,-44444.0,0.000339,3]
[322983412,1713561042304,-191.13379203,0.00033914,2]
[322983413,1713561042314,-520.61218234,0.00033979,4]
[322983414,1713561042325,-179.143226,0.00033999,2]
[322983415,1713561042335,-179.143226,0.00033999,2]
[322983416,1713561042345,-189.009093,0.00033999,2]
[322983418,1713561042356,-189.009093,0.00033999,2]
[322983420,1713561042367,-151.0,0.00033999,2]
[322983422,1713561042378,-246.042792,0.00033999,2]
[322983424,1713561042388,-151.0,0.00033999,2]
[322983425,1713561042398,-151.0,0.00033999,2]
[322983427,1713561042408,-1563.01828812,0.00034,7]
[322983429,1713561042418,-2000.0,0.00034,5]
[322983430,1713561042433,-755.44188678,0.00034,4]
[322983431,1713561042443,-10102.36070328,0.00034,7]
[322983433,1713561042453,-465.76981599,0.00034,4]
[322983435,1713561042463,-179.143226,0.00034,2]
[322983437,1713561042473,-179.143226,0.00034,2]
[322983438,1713561042485,-189.009093,0.00034,2]
[322983439,1713561042496,-189.009093,0.00034,2]
[322983440,1713561042506,-189.009093,0.00034,2]
[322983441,1713561042517,-189.009093,0.00034,2]
[322983442,1713561042528,-189.009093,0.00034,2]
[322983443,1713561042537,-189.009093,0.00034,2]
[322983445,1713561042547,-151.0,0.00034,2]
[322983447,1713561042557,-1000.0,0.00034,7]
[322983448,1713561042568,-1000.0,0.00034009,2]
[322983450,1713561042579,-179.143226,0.0003401,2]
[322983452,1713561042589,-179.143226,0.0003401,2]
[322983453,1713561042598,-189.009093,0.0003401,2]
[322983454,1713561042608,-189.009093,0.0003401,2]
[322983455,1713561042617,-189.009093,0.0003401,2]
[322983456,1713561042626,-189.009102,0.0003401,2]
[322983457,1713561042636,-151.0,0.00034013,2]
[322983458,1713561042646,-179.143226,0.00034013,2]
[322983459,1713561042655,-179.143226,0.00034013,2]
[322983460,1713561042666,-179.143226,0.00034013,2]
[322983461,1713561042675,-179.143226,0.00034013,2]
[322983462,1713561042685,-179.143226,0.00034013,2]
[322983463,1713561042695,-179.143226,0.00034013,2]
[322983464,1713561042708,-179.143226,0.00034013,2]
[322983465,1713561042718,-179.143235,0.00034013,2]
[322983466,1713561042730,-930.07258122,0.00034013,4]
[322983467,1713561042739,-672.6914059,0.00034013,4]
[322983468,1713561042748,-354.39971412,0.00034013,4]
[322983469,1713561042758,-1875.79814985,0.00034013,4]
[322983470,1713561042767,-1310.15475715,0.00034013,4]
[322983471,1713561042777,-154.84515485,0.00034013,4]
[322983472,1713561042786,-154.93218981,0.00034013,4]
[322983473,1713561042795,-154.84515485,0.00034013,4]
[322983474,1713561042805,-154.84515485,0.00034013,4]
[322983475,1713561042814,-385.37912018,0.00034013,4]
[322983476,1713561042824,-788.15969566,0.00034013,4]
[322983477,1713561042833,-281.21860613,0.00034013,4]
[322983478,1713561042842,-89.10618744,0.00034013,4]
[322983487,1713561042973,-86.2481691,0.00034013,4]
[322983489,1713561042987,-213.2971147,0.00034013,4]
[322983491,1713561043000,-107.9507162,0.00034013,4]
[322983554,1713561134301,150.83408251,0.00030423,30]
[322983572,1713561949170,-564.09332327,0.0002682,2]
[322983573,1713561949190,-688.90875736,0.00026821,2]
[322983574,1713561949210,-673.02624515,0.00026822,2]
[322983575,1713561949228,-154.84515485,0.00026833,2]
[322983576,1713561949247,-538.19224121,0.0002684,2]
[322983586,1713562155127,-502.97456,0.00024737,2]
[322983587,1713562157091,-174.54450708,0.00024737,2]
[322983588,1713562157113,-3341.530843,0.00024738,2]
[322983589,1713562157135,-150.0,0.0002474,2]
[322983590,1713562157157,-492.27420835,0.0002684,2]
[322983591,1713562157179,-154.84515485,0.0002684,2]
[322983592,1713562157201,-332.21467201,0.00027,2]
[322983593,1713562157223,-220.407505,0.00027397,2]
[322983594,1713562157244,-166.666666,0.00027397,2]
[322983595,1713562157266,-163.619024,0.00027397,2]
[322983596,1713562157287,-640.52332248,0.00028182,2]
[322983597,1713562157310,-166.666666,0.00028466,2]
[322983598,1713562157332,-192.46548711,0.00028514,2]
[322983599,1713562157354,-300.0,0.00028611,2]
[322983600,1713562157376,-300.0,0.00028611,2]
[322983601,1713562157399,-266.34295223,0.00028612,2]
[322983602,1713562157423,-553.16524506,0.00028612,2]
[322983603,1713562157447,-517.3655807,0.00028612,2]
[322983604,1713562157468,-494.15122377,0.00028613,2]
[322983605,1713562157490,-19493.47108816,0.00028614,2]
[322983796,1713562239387,-222.82995194,0.0002684,2]
[322983798,1713562239396,-331.79443357,0.00028613,2]
[322983800,1713562239406,-677.51906708,0.00028613,2]
[322983802,1713562239415,-2898.04994514,0.00028613,2]
[322983804,1713562239425,-300.0,0.00028613,2]
[322983806,1713562239436,-300.0,0.00028613,2]
[322983808,1713562239445,-482.41713152,0.00028614,2]
[322983810,1713562239457,-20864.67245295,0.00028614,2]
[322983812,1713562239468,-12476.16340254,0.00028614,2]
[322983815,1713562239481,-2494.19585482,0.00028614,2]
[322983817,1713562239494,-14479.0353364,0.00028614,2]
[322983820,1713562239515,-3031.97463067,0.00028614,2]
[322983822,1713562239527,-2660.32285777,0.00028614,2]
[322983985,1713562240671,-813.9024684,0.00028614,2]
[322983997,1713562240728,-1431.58436728,0.00028614,2]
[322984001,1713562240740,-1772.26040949,0.00028614,2]
[322984004,1713562240749,-1927.50170794,0.00028615,2]
[322984076,1713562243759,-8073.97260126,0.00028615,2]
[322984077,1713562243814,-2909.5714888,0.00028615,2]